[Event "*** Titled Tuesday Blitz"]
[Site "Chess.com"]
[Date "2020.01.07"]
[Round "6"]
[White "Martins-BR"]
[Black "Kumi29"]
[Result "1/2-1/2"]
[WhiteElo "2334"]
[BlackElo "2485"]
[TimeControl "180+2"]
[EndTime "14:25:20 PST"]
[Termination "Game drawn - insufficient material"]

1. e4 {[%clk 0:03:01.9]} 1... d5 {[%clk 0:03:00.8]} 2. exd5 {[%clk 0:03:02.3]}
2... Qxd5 {[%clk 0:03:02.7]} 3. Nc3 {[%clk 0:03:03.5]} 3... Qd8 {[%clk
0:03:04.3]} 4. d4 {[%clk 0:03:03.3]} 4... Nf6 {[%clk 0:03:05.6]} 5. Bc4 {[%clk
0:03:03.7]} 5... g6 {[%clk 0:03:06.3]} 6. Nf3 {[%clk 0:03:03.6]} 6... Bg7 {[%clk
0:03:07.6]} 7. h3 {[%clk 0:03:04]} 7... O-O {[%clk 0:03:08.7]} 8. Be3 {[%clk
0:03:03.5]} 8... b6 {[%clk 0:03:08.1]} 9. Qd2 {[%clk 0:03:02.1]} 9... Bb7 {[%clk
0:03:07.9]} 10. O-O-O {[%clk 0:03:01.6]} 10... Nc6 {[%clk 0:03:04.3]} 11. Bh6
{[%clk 0:02:58.2]} 11... e6 {[%clk 0:03:00]} 12. Bxg7 {[%clk 0:02:57.6]} 12...
Kxg7 {[%clk 0:03:01.9]} 13. g4 {[%clk 0:02:51.4]} 13... Na5 {[%clk 0:02:57]} 14.
Be2 {[%clk 0:02:50.8]} 14... Qd6 {[%clk 0:02:48.3]} 15. Rhg1 {[%clk 0:02:46.6]}
15... Bxf3 {[%clk 0:02:37.6]} 16. Bxf3 {[%clk 0:02:46.8]} 16... Nc4 {[%clk
0:02:39.1]} 17. Qg5 {[%clk 0:02:19.3]} 17... Rad8 {[%clk 0:02:27.5]} 18. Qxf6+
{[%clk 0:02:10.5]} 18... Kxf6 {[%clk 0:02:25.6]} 19. Ne4+ {[%clk 0:02:11.4]}
19... Ke7 {[%clk 0:02:23.3]} 20. Nxd6 {[%clk 0:02:12.3]} 20... Rxd6 {[%clk
0:02:25.1]} 21. c3 {[%clk 0:02:12.8]} 21... Rfd8 {[%clk 0:02:24.9]} 22. h4
{[%clk 0:02:11.5]} 22... b5 {[%clk 0:01:46.3]} 23. Be2 {[%clk 0:02:10.9]} 23...
Rb8 {[%clk 0:01:32.6]} 24. Bxc4 {[%clk 0:02:06.5]} 24... bxc4 {[%clk 0:01:34.5]}
25. Rge1 {[%clk 0:02:01.9]} 25... Ra6 {[%clk 0:01:25.1]} 26. a3 {[%clk
0:02:02.1]} 26... Rab6 {[%clk 0:01:26.5]} 27. Rd2 {[%clk 0:02:02.5]} 27... Rd8
{[%clk 0:01:26.6]} 28. Re5 {[%clk 0:02:01.8]} 28... Rd5 {[%clk 0:01:22.1]} 29.
f4 {[%clk 0:01:57.1]} 29... Rbd6 {[%clk 0:01:09]} 30. Rde2 {[%clk 0:01:52.7]}
30... c6 {[%clk 0:01:04.2]} 31. g5 {[%clk 0:01:26.2]} 31... Rd8 {[%clk
0:00:56.1]} 32. h5 {[%clk 0:01:22.5]} 32... gxh5 {[%clk 0:00:49]} 33. Rh2 {[%clk
0:01:22.2]} 33... Rxe5 {[%clk 0:00:47.7]} 34. dxe5 {[%clk 0:01:15.6]} 34... Rd3
{[%clk 0:00:40]} 35. Rxh5 {[%clk 0:01:16.2]} 35... Rf3 {[%clk 0:00:39.8]} 36.
Rxh7 {[%clk 0:01:16.5]} 36... Rxf4 {[%clk 0:00:40.9]} 37. g6 {[%clk 0:01:17]}
37... Kf8 {[%clk 0:00:36.1]} 38. gxf7 {[%clk 0:01:16.3]} 38... Rxf7 {[%clk
0:00:34.4]} 39. Rh8+ {[%clk 0:01:05.2]} 39... Ke7 {[%clk 0:00:35.2]} 40. Rh2
{[%clk 0:01:00.1]} 40... Rf5 {[%clk 0:00:30.5]} 41. Rh7+ {[%clk 0:01:00.7]}
41... Rf7 {[%clk 0:00:26.7]} 42. Rh2 {[%clk 0:01:01.2]} 42... Kd7 {[%clk
0:00:24.5]} 43. Rd2+ {[%clk 0:00:55.4]} 43... Kc7 {[%clk 0:00:21]} 44. Rd6
{[%clk 0:00:56.1]} 44... Rf1+ {[%clk 0:00:20.3]} 45. Kc2 {[%clk 0:00:56.6]}
45... Rf2+ {[%clk 0:00:21.5]} 46. Kb1 {[%clk 0:00:56.5]} 46... Rf1+ {[%clk
0:00:20.7]} 47. Ka2 {[%clk 0:00:54.7]} 47... Re1 {[%clk 0:00:20.6]} 48. Rxe6
{[%clk 0:00:55]} 48... Kd7 {[%clk 0:00:20]} 49. Rd6+ {[%clk 0:00:55.9]} 49...
Kc7 {[%clk 0:00:21]} 50. Rd4 {[%clk 0:00:57.1]} 50... Rxe5 {[%clk 0:00:21.8]}
51. Rxc4 {[%clk 0:00:58.2]} 51... Kb6 {[%clk 0:00:23.3]} 52. b4 {[%clk
0:00:56.6]} 52... Rh5 {[%clk 0:00:22.3]} 53. Kb3 {[%clk 0:00:56.7]} 53... a5
{[%clk 0:00:17.5]} 54. a4 {[%clk 0:00:52.8]} 54... Rg5 {[%clk 0:00:10.4]} 55.
bxa5+ {[%clk 0:00:44.9]} 55... Rxa5 {[%clk 0:00:10.6]} 56. Kb4 {[%clk
0:00:45.6]} 56... Rh5 {[%clk 0:00:11.6]} 57. a5+ {[%clk 0:00:46.1]} 57... Rxa5
{[%clk 0:00:10.3]} 58. Rxc6+ {[%clk 0:00:46.5]} 58... Kxc6 {[%clk 0:00:12.2]}
59. Kxa5 {[%clk 0:00:47.6]} 59... Kc5 {[%clk 0:00:13.9]} 60. Ka4 {[%clk
0:00:48.7]} 60... Kc4 {[%clk 0:00:15.8]} 61. Ka5 {[%clk 0:00:49.9]} 61... Kxc3
{[%clk 0:00:17.7]} 1/2-1/2

[Event "*** Titled Tuesday Blitz"]
[Site "Chess.com"]
[Date "2020.01.07"]
[Round "6"]
[White "attack2mateU"]
[Black "Caracternin123"]
[Result "1/2-1/2"]
[WhiteElo "2678"]
[BlackElo "2525"]
[TimeControl "180+2"]
[EndTime "14:25:28 PST"]
[Termination "Game drawn by repetition"]

1. e4 {[%clk 0:03:01.9]} 1... Nf6 {[%clk 0:03:01]} 2. e5 {[%clk 0:03:02.6]} 2...
Nd5 {[%clk 0:03:02.5]} 3. d4 {[%clk 0:03:03.2]} 3... d6 {[%clk 0:03:04]} 4. Nf3
{[%clk 0:03:04.6]} 4... g6 {[%clk 0:03:05.4]} 5. Be2 {[%clk 0:03:03.9]} 5... Bg7
{[%clk 0:03:05.7]} 6. O-O {[%clk 0:03:04.4]} 6... O-O {[%clk 0:03:06.8]} 7. exd6
{[%clk 0:03:04.8]} 7... cxd6 {[%clk 0:03:08.7]} 8. c4 {[%clk 0:03:05.1]} 8...
Nb6 {[%clk 0:03:09.8]} 9. Nc3 {[%clk 0:03:04.4]} 9... Nc6 {[%clk 0:03:10.4]} 10.
Be3 {[%clk 0:03:02.7]} 10... Bg4 {[%clk 0:03:10.7]} 11. b3 {[%clk 0:03:02.6]}
11... d5 {[%clk 0:03:08.9]} 12. c5 {[%clk 0:03:01.3]} 12... Nc8 {[%clk
0:03:10.1]} 13. Rb1 {[%clk 0:02:54.8]} 13... e6 {[%clk 0:03:01.7]} 14. b4 {[%clk
0:02:55.1]} 14... a6 {[%clk 0:03:01.9]} 15. a4 {[%clk 0:02:55]} 15... Bxf3
{[%clk 0:03:01.5]} 16. Bxf3 {[%clk 0:02:55.6]} 16... N8e7 {[%clk 0:03:03.1]} 17.
b5 {[%clk 0:02:56.1]} 17... Na5 {[%clk 0:03:04.7]} 18. Be2 {[%clk 0:02:41.2]}
18... Nf5 {[%clk 0:02:49.2]} 19. bxa6 {[%clk 0:01:40]} 19... bxa6 {[%clk
0:02:48.5]} 20. Rb6 {[%clk 0:01:41.5]} 20... Nc4 {[%clk 0:02:38]} 21. Bxc4
{[%clk 0:01:41.6]} 21... dxc4 {[%clk 0:02:39.9]} 22. Qe2 {[%clk 0:01:40.5]}
22... Bxd4 {[%clk 0:02:18]} 23. Rd1 {[%clk 0:01:41.1]} 23... Qf6 {[%clk
0:01:32.6]} 24. Bxd4 {[%clk 0:01:38.3]} 24... Nxd4 {[%clk 0:01:34.5]} 25. Qxc4
{[%clk 0:01:39.1]} 25... Rfd8 {[%clk 0:01:34.1]} 26. Rd6 {[%clk 0:01:39.1]}
26... Nf5 {[%clk 0:01:19.2]} 27. Rxd8+ {[%clk 0:01:24.5]} 27... Rxd8 {[%clk
0:01:21.1]} 28. Rxd8+ {[%clk 0:01:25.3]} 28... Qxd8 {[%clk 0:01:23]} 29. c6
{[%clk 0:01:25.9]} 29... Qd2 {[%clk 0:01:22]} 30. g3 {[%clk 0:01:24.5]} 30...
Qc1+ {[%clk 0:00:20.9]} 31. Kg2 {[%clk 0:01:24.7]} 31... Qd2 {[%clk 0:00:22.5]}
32. Qc5 {[%clk 0:01:21.3]} 32... Nd6 {[%clk 0:00:12.4]} 33. c7 {[%clk
0:01:20.3]} 33... Nc8 {[%clk 0:00:14]} 34. Ne4 {[%clk 0:01:10.3]} 34... Qd5
{[%clk 0:00:13.8]} 35. Qxd5 {[%clk 0:00:39.3]} 35... exd5 {[%clk 0:00:15.7]} 36.
Nf6+ {[%clk 0:00:40.4]} 36... Kf8 {[%clk 0:00:17.2]} 37. Nxd5 {[%clk 0:00:41.1]}
37... Ke8 {[%clk 0:00:18.2]} 38. Kf3 {[%clk 0:00:38.2]} 38... Kd7 {[%clk
0:00:19]} 39. Kf4 {[%clk 0:00:38.1]} 39... Kd6 {[%clk 0:00:19.8]} 40. Nf6 {[%clk
0:00:37.8]} 40... h5 {[%clk 0:00:17.5]} 41. Ne4+ {[%clk 0:00:22.4]} 41... Kxc7
{[%clk 0:00:18.7]} 42. Ke5 {[%clk 0:00:24]} 42... Kb6 {[%clk 0:00:20.1]} 43. Kf6
{[%clk 0:00:23.5]} 43... Ka5 {[%clk 0:00:21.6]} 44. Kxf7 {[%clk 0:00:24.3]}
44... Kxa4 {[%clk 0:00:23.1]} 45. Kxg6 {[%clk 0:00:22.2]} 45... Kb4 {[%clk
0:00:24.5]} 46. f4 {[%clk 0:00:21.6]} 46... a5 {[%clk 0:00:26.4]} 47. f5 {[%clk
0:00:21.4]} 47... Ne7+ {[%clk 0:00:27.1]} 48. Kf6 {[%clk 0:00:21.2]} 48... Nxf5
{[%clk 0:00:23.6]} 49. Kxf5 {[%clk 0:00:23.1]} 49... a4 {[%clk 0:00:25.2]} 50.
Nf2 {[%clk 0:00:10.3]} 50... Kc3 {[%clk 0:00:23]} 51. Nd1+ {[%clk 0:00:09.8]}
51... Kb3 {[%clk 0:00:24.2]} 52. Nf2 {[%clk 0:00:04.4]} 52... a3 {[%clk
0:00:24.8]} 53. Nd3 {[%clk 0:00:05.7]} 53... Kc2 {[%clk 0:00:21.4]} 54. Ke4
{[%clk 0:00:06]} 54... Kc3 {[%clk 0:00:17.3]} 55. Nc1 {[%clk 0:00:04.9]} 55...
Kb2 {[%clk 0:00:18.7]} 56. Nd3+ {[%clk 0:00:04.1]} 56... Kc3 {[%clk 0:00:20.2]}
57. Nc1 {[%clk 0:00:05.4]} 57... Kb2 {[%clk 0:00:17.2]} 58. Nd3+ {[%clk
0:00:05.5]} 58... Kc3 {[%clk 0:00:18.6]} 1/2-1/2

[Event "*** Titled Tuesday Blitz"]
[Site "Chess.com"]
[Date "2020.01.07"]
[Round "6"]
[White "Karina_Ivanova"]
[Black "FearlessKing64"]
[Result "1/2-1/2"]
[WhiteElo "2168"]
[BlackElo "2280"]
[TimeControl "180+2"]
[EndTime "14:25:29 PST"]
[Termination "Game drawn - insufficient material"]

1. c4 {[%clk 0:02:57]} 1... Nf6 {[%clk 0:02:59.5]} 2. Nf3 {[%clk 0:02:55.8]}
2... g6 {[%clk 0:03:00.5]} 3. g3 {[%clk 0:02:55.7]} 3... c5 {[%clk 0:03:01.7]}
4. Bg2 {[%clk 0:02:56.2]} 4... d5 {[%clk 0:03:02.8]} 5. cxd5 {[%clk 0:02:56.3]}
5... Nxd5 {[%clk 0:03:04.7]} 6. O-O {[%clk 0:02:56.9]} 6... Bg7 {[%clk
0:03:06.1]} 7. Nc3 {[%clk 0:02:57.5]} 7... Nc7 {[%clk 0:03:07.3]} 8. e3 {[%clk
0:02:54.3]} 8... Nc6 {[%clk 0:03:07.7]} 9. Rb1 {[%clk 0:02:50.2]} 9... O-O
{[%clk 0:03:04]} 10. a3 {[%clk 0:02:43.4]} 10... Bf5 {[%clk 0:03:03.6]} 11. e4
{[%clk 0:02:44.2]} 11... Be6 {[%clk 0:03:00.1]} 12. d3 {[%clk 0:02:42.2]} 12...
h6 {[%clk 0:02:40]} 13. Qe2 {[%clk 0:02:39.6]} 13... Qd7 {[%clk 0:02:30.8]} 14.
Rd1 {[%clk 0:02:37.9]} 14... Rad8 {[%clk 0:02:30.8]} 15. Be3 {[%clk 0:02:32.7]}
15... b6 {[%clk 0:02:31.9]} 16. Qc2 {[%clk 0:02:26]} 16... Na5 {[%clk 0:02:12]}
17. b4 {[%clk 0:02:23.8]} 17... cxb4 {[%clk 0:02:12.6]} 18. axb4 {[%clk
0:02:24.1]} 18... Nc6 {[%clk 0:02:13.6]} 19. d4 {[%clk 0:02:18.9]} 19... Bh3
{[%clk 0:01:54.6]} 20. d5 {[%clk 0:02:13.6]} 20... Ne5 {[%clk 0:01:51.8]} 21.
Nxe5 {[%clk 0:02:08.1]} 21... Bxe5 {[%clk 0:01:52.8]} 22. Bxh6 {[%clk 0:02:03]}
22... Bxg2 {[%clk 0:01:38.3]} 23. Kxg2 {[%clk 0:02:02.8]} 23... Rfe8 {[%clk
0:01:35.8]} 24. Be3 {[%clk 0:01:54.2]} 24... Rc8 {[%clk 0:01:36.1]} 25. Qd3
{[%clk 0:01:42.5]} 25... Bxc3 {[%clk 0:01:32]} 26. Qxc3 {[%clk 0:01:42.6]} 26...
Nxd5 {[%clk 0:01:31.6]} 27. Qd4 {[%clk 0:01:37.3]} 27... Nxe3+ {[%clk 0:01:31]}
28. Qxe3 {[%clk 0:01:34.6]} 28... Qe6 {[%clk 0:01:29.8]} 29. Rbc1 {[%clk
0:01:25.9]} 29... Rc4 {[%clk 0:01:18.5]} 30. Rxc4 {[%clk 0:01:25.3]} 30... Qxc4
{[%clk 0:01:19.2]} 31. Qd4 {[%clk 0:01:22.9]} 31... Qxd4 {[%clk 0:01:12.6]} 32.
Rxd4 {[%clk 0:01:23.2]} 32... Ra8 {[%clk 0:01:14]} 33. b5 {[%clk 0:01:21.9]}
33... Kf8 {[%clk 0:01:13.1]} 34. e5 {[%clk 0:01:18.2]} 34... Ke8 {[%clk
0:01:13.2]} 35. f4 {[%clk 0:01:18.7]} 35... a5 {[%clk 0:01:13.4]} 36. bxa6
{[%clk 0:01:19.3]} 36... Rxa6 {[%clk 0:01:14.8]} 37. Kf3 {[%clk 0:01:18.3]}
37... Ra3+ {[%clk 0:01:13.8]} 38. Ke4 {[%clk 0:01:18.6]} 38... Rb3 {[%clk
0:01:15.5]} 39. Kd5 {[%clk 0:01:14.2]} 39... Rb2 {[%clk 0:01:14.8]} 40. Kc6
{[%clk 0:01:13.8]} 40... b5 {[%clk 0:01:09.9]} 41. Kc7 {[%clk 0:00:58.3]} 41...
Kf8 {[%clk 0:01:10.8]} 42. h4 {[%clk 0:00:47.4]} 42... b4 {[%clk 0:01:10.3]} 43.
Kd7 {[%clk 0:00:46.4]} 43... e6 {[%clk 0:01:03.9]} 44. g4 {[%clk 0:00:42.9]}
44... b3 {[%clk 0:01:04]} 45. Rb4 {[%clk 0:00:30.2]} 45... Rb1 {[%clk
0:00:56.2]} 46. Rb8+ {[%clk 0:00:29.3]} 46... Kg7 {[%clk 0:00:57.5]} 47. Ke7
{[%clk 0:00:30.3]} 47... b2 {[%clk 0:00:53.6]} 48. h5 {[%clk 0:00:20.9]} 48...
gxh5 {[%clk 0:00:53.6]} 49. gxh5 {[%clk 0:00:21.4]} 49... Rf1 {[%clk 0:00:52.5]}
50. Rxb2 {[%clk 0:00:21]} 50... Rxf4 {[%clk 0:00:54.4]} 51. Ke8 {[%clk
0:00:21.7]} 51... Rf5 {[%clk 0:00:55.2]} 52. Rb7 {[%clk 0:00:22.1]} 52... Rxe5
{[%clk 0:00:48.9]} 53. Rxf7+ {[%clk 0:00:21.1]} 53... Kh6 {[%clk 0:00:50.4]} 54.
Ke7 {[%clk 0:00:21.5]} 54... Kxh5 {[%clk 0:00:45]} 55. Rf6 {[%clk 0:00:21.7]}
55... Kg5 {[%clk 0:00:45.5]} 56. Rxe6 {[%clk 0:00:21.9]} 56... Rxe6+ {[%clk
0:00:47]} 57. Kxe6 {[%clk 0:00:22.6]} 1/2-1/2

[Event "*** Titled Tuesday Blitz"]
[Site "Chess.com"]
[Date "2020.01.07"]
[Round "6"]
[White "Roenko_Artur"]
[Black "novocane"]
[Result "1/2-1/2"]
[WhiteElo "2253"]
[BlackElo "2178"]
[TimeControl "180+2"]
[EndTime "14:25:33 PST"]
[Termination "Game drawn - insufficient material"]

1. e4 {[%clk 0:03:01.9]} 1... c5 {[%clk 0:03:00.5]} 2. d4 {[%clk 0:03:02.5]}
2... cxd4 {[%clk 0:03:01.4]} 3. c3 {[%clk 0:03:03.7]} 3... dxc3 {[%clk
0:03:03.3]} 4. Nxc3 {[%clk 0:03:05.3]} 4... Nc6 {[%clk 0:03:05]} 5. Nf3 {[%clk
0:03:06.2]} 5... d6 {[%clk 0:03:06.5]} 6. Bc4 {[%clk 0:03:06.9]} 6... a6 {[%clk
0:03:07.8]} 7. a4 {[%clk 0:03:07]} 7... Nf6 {[%clk 0:03:08.4]} 8. e5 {[%clk
0:03:04.3]} 8... dxe5 {[%clk 0:03:08.4]} 9. Qxd8+ {[%clk 0:03:03.5]} 9... Nxd8
{[%clk 0:03:09.8]} 10. Nxe5 {[%clk 0:03:02.6]} 10... e6 {[%clk 0:03:11.1]} 11.
Bg5 {[%clk 0:02:58.9]} 11... Be7 {[%clk 0:03:11.6]} 12. O-O-O {[%clk 0:02:57.2]}
12... O-O {[%clk 0:03:09.7]} 13. Rd3 {[%clk 0:02:40.6]} 13... h6 {[%clk
0:03:07.6]} 14. Bh4 {[%clk 0:02:40.5]} 14... Nc6 {[%clk 0:03:01.6]} 15. Nxc6
{[%clk 0:02:38.6]} 15... bxc6 {[%clk 0:03:02.5]} 16. Rhd1 {[%clk 0:02:28.8]}
16... c5 {[%clk 0:02:55.9]} 17. f3 {[%clk 0:02:15.5]} 17... Re8 {[%clk 0:02:09]}
18. a5 {[%clk 0:01:33]} 18... Bb7 {[%clk 0:02:05.8]} 19. Na4 {[%clk 0:01:23.4]}
19... Nd5 {[%clk 0:01:26.6]} 20. Bxe7 {[%clk 0:01:17.9]} 20... Nxe7 {[%clk
0:01:11.1]} 21. Nxc5 {[%clk 0:01:09.8]} 21... Bd5 {[%clk 0:01:11.9]} 22. Bxd5
{[%clk 0:00:54.2]} 22... Nxd5 {[%clk 0:01:12.2]} 23. Kb1 {[%clk 0:00:54.9]}
23... Rec8 {[%clk 0:01:09]} 24. Ne4 {[%clk 0:00:51]} 24... Rc6 {[%clk
0:01:09.3]} 25. Rb3 {[%clk 0:00:47.2]} 25... Rac8 {[%clk 0:01:07]} 26. g4 {[%clk
0:00:35.3]} 26... Nf4 {[%clk 0:00:49.8]} 27. h4 {[%clk 0:00:26.7]} 27... Nd5
{[%clk 0:00:43.9]} 28. g5 {[%clk 0:00:25.2]} 28... hxg5 {[%clk 0:00:44.9]} 29.
hxg5 {[%clk 0:00:26.1]} 29... Ne7 {[%clk 0:00:31.1]} 30. Rb7 {[%clk 0:00:25.7]}
30... Nd5 {[%clk 0:00:26.6]} 31. Rh1 {[%clk 0:00:19.9]} 31... Rd8 {[%clk
0:00:22.1]} 32. g6 {[%clk 0:00:15.1]} 32... fxg6 {[%clk 0:00:20.7]} 33. Rg1
{[%clk 0:00:14.4]} 33... Nf4 {[%clk 0:00:20.9]} 34. Ng5 {[%clk 0:00:10.7]} 34...
Rcd6 {[%clk 0:00:18]} 35. Ka2 {[%clk 0:00:07.9]} 35... R6d7 {[%clk 0:00:16]} 36.
Rb4 {[%clk 0:00:07.8]} 36... Rd4 {[%clk 0:00:17]} 37. Rxd4 {[%clk 0:00:07.4]}
37... Rxd4 {[%clk 0:00:18]} 38. Rc1 {[%clk 0:00:07.7]} 38... Rd8 {[%clk
0:00:17.5]} 39. Rc6 {[%clk 0:00:07.1]} 39... Kf8 {[%clk 0:00:15.4]} 40. Rxa6
{[%clk 0:00:06.4]} 40... Ke7 {[%clk 0:00:17]} 41. Ra7+ {[%clk 0:00:07.6]} 41...
Kf6 {[%clk 0:00:18]} 42. Ne4+ {[%clk 0:00:08.9]} 42... Ke5 {[%clk 0:00:19.2]}
43. Rxg7 {[%clk 0:00:08.2]} 43... Nd5 {[%clk 0:00:20]} 44. a6 {[%clk 0:00:06.9]}
44... Ra8 {[%clk 0:00:20.6]} 45. a7 {[%clk 0:00:07.8]} 45... Nb4+ {[%clk
0:00:21.8]} 46. Kb3 {[%clk 0:00:07.7]} 46... Nc6 {[%clk 0:00:23.7]} 47. Nc5
{[%clk 0:00:07.6]} 47... Rxa7 {[%clk 0:00:22.9]} 48. Rxa7 {[%clk 0:00:07.3]}
48... Nxa7 {[%clk 0:00:24.8]} 49. Kc4 {[%clk 0:00:08.3]} 49... Nc6 {[%clk
0:00:21.4]} 50. b4 {[%clk 0:00:08.1]} 50... Nxb4 {[%clk 0:00:22.6]} 51. Kxb4
{[%clk 0:00:08.8]} 51... Kf4 {[%clk 0:00:23.8]} 52. Nd3+ {[%clk 0:00:10.2]}
52... Kxf3 {[%clk 0:00:25.1]} 53. Ne5+ {[%clk 0:00:09.6]} 53... Kf4 {[%clk
0:00:20.3]} 54. Nxg6+ {[%clk 0:00:11.5]} 54... Kf5 {[%clk 0:00:21.5]} 55. Ne7+
{[%clk 0:00:11.4]} 55... Kf6 {[%clk 0:00:22.3]} 56. Nc6 {[%clk 0:00:12.7]} 56...
e5 {[%clk 0:00:24]} 57. Nxe5 {[%clk 0:00:13.4]} 1/2-1/2

[Event "*** Titled Tuesday Blitz"]
[Site "Chess.com"]
[Date "2020.01.07"]
[Round "6"]
[White "viktorskliarov"]
[Black "SavelijTartakover"]
[Result "1/2-1/2"]
[WhiteElo "2603"]
[BlackElo "2709"]
[TimeControl "180+2"]
[EndTime "14:25:36 PST"]
[Termination "Game drawn by agreement"]

1. e4 {[%clk 0:03:01.9]} 1... e5 {[%clk 0:03:00.2]} 2. Nc3 {[%clk 0:03:01.6]}
2... Nf6 {[%clk 0:03:00]} 3. Bc4 {[%clk 0:03:02.7]} 3... Nxe4 {[%clk 0:03:00.1]}
4. Qh5 {[%clk 0:03:02.8]} 4... Nd6 {[%clk 0:02:58.4]} 5. Bb3 {[%clk 0:03:03.9]}
5... Be7 {[%clk 0:02:57.1]} 6. Qxe5 {[%clk 0:03:04.6]} 6... O-O {[%clk
0:02:56.2]} 7. Nge2 {[%clk 0:03:05.7]} 7... Nc6 {[%clk 0:02:55.1]} 8. Qf4 {[%clk
0:03:06]} 8... Bg5 {[%clk 0:02:48]} 9. Qf3 {[%clk 0:03:05.4]} 9... Na5 {[%clk
0:02:40.2]} 10. h4 {[%clk 0:03:01.6]} 10... Be7 {[%clk 0:02:28.7]} 11. Nd5
{[%clk 0:02:58.4]} 11... Nxb3 {[%clk 0:02:27]} 12. axb3 {[%clk 0:02:55.6]} 12...
c6 {[%clk 0:02:26.6]} 13. Nxe7+ {[%clk 0:02:56.2]} 13... Qxe7 {[%clk 0:02:28.5]}
14. d3 {[%clk 0:02:52.3]} 14... Nb5 {[%clk 0:02:22.5]} 15. Be3 {[%clk
0:02:35.7]} 15... d5 {[%clk 0:02:22.7]} 16. O-O-O {[%clk 0:02:15.5]} 16... a5
{[%clk 0:02:11.9]} 17. Qf4 {[%clk 0:01:55.4]} 17... Qc7 {[%clk 0:01:50.7]} 18.
h5 {[%clk 0:01:36.7]} 18... Qxf4 {[%clk 0:01:48.9]} 19. Bxf4 {[%clk 0:01:20.4]}
19... Re8 {[%clk 0:01:35.9]} 20. Nc3 {[%clk 0:01:10.2]} 20... Nxc3 {[%clk
0:01:33.6]} 21. bxc3 {[%clk 0:01:10.8]} 21... a4 {[%clk 0:01:33.1]} 22. bxa4
{[%clk 0:00:24.6]} 22... Rxa4 {[%clk 0:01:31.3]} 23. Be3 {[%clk 0:00:16.7]}
23... f6 {[%clk 0:01:20.2]} 24. Kd2 {[%clk 0:00:14.8]} 24... Bf5 {[%clk
0:01:05.3]} 25. h6 {[%clk 0:00:14.3]} 25... g5 {[%clk 0:01:04.2]} 26. Bd4 {[%clk
0:00:15.4]} 26... Kf7 {[%clk 0:01:01.4]} 27. Rde1 {[%clk 0:00:12.8]} 27... Rxe1
{[%clk 0:00:50.4]} 28. Rxe1 {[%clk 0:00:13.2]} 28... g4 {[%clk 0:00:43.1]} 29.
f4 {[%clk 0:00:12.1]} 29... b5 {[%clk 0:00:35.2]} 30. g3 {[%clk 0:00:09.6]}
30... Ra8 {[%clk 0:00:24.4]} 31. Bc5 {[%clk 0:00:09.4]} 31... Be6 {[%clk
0:00:25.1]} 32. Bd4 {[%clk 0:00:06.5]} 32... Re8 {[%clk 0:00:20.3]} 33. Bc5
{[%clk 0:00:07.5]} 33... Kg6 {[%clk 0:00:20]} 34. Bd4 {[%clk 0:00:08.6]} 34...
Kf5 {[%clk 0:00:17.5]} 35. Rh1 {[%clk 0:00:08.6]} 35... Rg8 {[%clk 0:00:15.8]}
36. Rh5+ {[%clk 0:00:07.5]} 36... Kg6 {[%clk 0:00:16.5]} 37. Rh1 {[%clk
0:00:08.9]} 37... Bf5 {[%clk 0:00:16.2]} 38. Re1 {[%clk 0:00:09.5]} 38... Kf7
{[%clk 0:00:16.7]} 39. Bc5 {[%clk 0:00:10.3]} 39... Be6 {[%clk 0:00:17]} 40. Bd4
{[%clk 0:00:11.6]} 40... Rg6 {[%clk 0:00:17.4]} 41. Rh1 {[%clk 0:00:12.5]} 41...
Bf5 {[%clk 0:00:18]} 42. Kc1 {[%clk 0:00:12.6]} 42... Rg8 {[%clk 0:00:18.2]} 43.
Kd2 {[%clk 0:00:13.3]} 43... Kg6 {[%clk 0:00:18.7]} 44. Re1 {[%clk 0:00:12.9]}
44... Kf7 {[%clk 0:00:19.6]} 45. Rh1 {[%clk 0:00:13.7]} 45... Ra8 {[%clk
0:00:20.1]} 46. Re1 {[%clk 0:00:14.3]} 46... Rc8 {[%clk 0:00:19.6]} 47. Bc5
{[%clk 0:00:15.6]} 47... Be6 {[%clk 0:00:20.6]} 48. Ra1 {[%clk 0:00:16]} 48...
Rc7 {[%clk 0:00:20.7]} 49. Ra7 {[%clk 0:00:15.6]} 49... Rxa7 {[%clk 0:00:21.1]}
50. Bxa7 {[%clk 0:00:17.5]} 50... Kg6 {[%clk 0:00:22.1]} 51. Bd4 {[%clk
0:00:17.9]} 51... Kxh6 {[%clk 0:00:22.9]} 52. Bxf6 {[%clk 0:00:18.7]} 52... Kg6
{[%clk 0:00:23.8]} 53. Be7 {[%clk 0:00:19.4]} 53... h5 {[%clk 0:00:22.7]} 54.
Ke3 {[%clk 0:00:19.8]} 54... Bf5 {[%clk 0:00:23.4]} 55. Kd4 {[%clk 0:00:20.3]}
55... Kf7 {[%clk 0:00:23.4]} 56. Bg5 {[%clk 0:00:20.9]} 56... Ke6 {[%clk
0:00:24.2]} 57. Kc5 {[%clk 0:00:22.1]} 57... Kd7 {[%clk 0:00:24.8]} 58. Bf6
{[%clk 0:00:23.2]} 58... Bg6 {[%clk 0:00:24.2]} 59. Bg5 {[%clk 0:00:24.2]} 59...
Bf5 {[%clk 0:00:22.7]} 1/2-1/2